[Event "Budapest Chess Festival 2024"]
[Site "Budapest"]
[Date "2024.05.23"]
[Round "1.1"]
[White "Filip, Andrei"]
[Black "Aryan Chopra"]
[Result "0-1"]
[ECO "B66"]
[WhiteElo "2286"]
[BlackElo "2641"]
[Annotator "TA"]
[PlyCount "66"]
[EventDate "2024.05.20"]
[EventType "swiss"]
[EventCountry "HUN"]
[SourceTitle "playchess.com"]
[Source "ChessBase"]
[SourceQuality "1"]
[TimeControl "40/5400+30:1800+30"]

{[%evp 13,65,20,29,18,19,29,33,26,35,25,33,35,45,40,52,32,54,16,22,8,8,3,14,-39,-27,-161,-159,-186,-166,-247,-240,-322,-311,-475,-456,-410,-494,-469,-489,-556,-567,-564,-551,-564,-556,-501,-350,-375,-367,-714,-688,-29996,-29997,-29999]} 1. e4 {[%emt 0:00:36]} c5 {[%emt 0:00:36]} 2. Nf3 {[%emt 0:00:10]} d6 {[%emt 0:00:04]} 3. d4 {[%emt 0:00:06]} cxd4 {[%emt 0:00:04]} 4. Nxd4 {[%emt 0:00:07]} Nf6 {[%emt 0:00:07]} 5. Nc3 {[%emt 0:00:06]} Nc6 {[%emt 0:00:05]} 6. Bg5 {[%emt 0:01:23]} e6 {[%emt 0:00:09]} 7. Qd2 {[%emt 0:00:20]} a6 {[%emt 0:00:15]} 8. Nxc6 {[%emt 0:01:00]} bxc6 {[%emt 0:00:05]} 9. O-O-O {[%emt 0:00:42][%cal Oe4e5]} Be7 {[%emt 0:00:42]} 10. Bxf6 {[%emt 0:01:04] White is slightly better.} gxf6 {[%emt 0:00:07]} 11. Bc4 {[%emt 0:00:47]} Rb8 {[%emt 0:01:26]} 12. Bb3 {[%emt 0:03:28]} O-O {[%emt 0:00:26]} 13. Kb1 {[%emt 0:04:09]} Kh8 {[%emt 0:14:15]} 14. f4 {[%emt 0:09:09][%cal Bf2f4,Bf4f5][%mdl 32]} d5 {[%emt 0:07:35]} 15. f5 {[%emt 0:08:22]} Bd6 {[%emt 0:08:01]} 16. g4 {[%emt 0:16:45]} Be5 {[%emt 0:17:06]} 17. Rhg1 {[%emt 0:06:55]} Rg8 {[%emt 0:07:49]} 18. exd5 {[%emt 0:04:24]} (18. h4 $11) 18... exd5 $15 {[%emt 0:01:23]} 19. h4 {[%emt 0:05:08] [#] Now White is beyond hope.} (19. Na4 $11) 19... Rb4 $1 $19 {[%emt 0:01:54]} 20. Qe2 {[%emt 0:05:01]} Qb6 {[%emt 0:07:17] ...a5 would now be deadly.} 21. a3 {[%emt 0:14:45]} (21. Rg2 $142) 21... Rf4 {[%emt 0:00:51] White must now prevent ...Bxc3.} 22. Rg2 {[%emt 0:01:38] [#]} a5 $1 {[%emt 0:04:16]} 23. g5 {[%emt 0:02:06]} (23. a4 $142) 23... Bxc3 {[%emt 0:03:12]} (23... Rxf5 24. gxf6 Rxg2 25. Qxg2 Rxf6 (25... Bxf6 26. Ne4 $17) 26. Qg5 $17) 24. bxc3 {[%emt 0:01:43]} Bxf5 {[%emt 0:00:08]} 25. Kc1 {[%emt 0:02:41]} Be4 {[%emt 0:01:52]} (25... Rxh4 26. Qf3 a4 (26... Rxg5 27. Rxg5 fxg5 28. Qxf5 $18) 27. Qxf5 Qe3+ (27... axb3 $2 {too greedy.} 28. Qxf6+ Rg7 29. Re2 $18) 28. Kb2 $11) 26. Rg3 {[%emt 0:01:37]} Qc5 {[%emt 0:04:50]} 27. Rf1 {[%emt 0:01:08] Against Rf2} Qxa3+ {[%emt 0:00:45]} 28. Kd2 {[%emt 0:00:07]} Qd6 {[%emt 0:00:49]} 29. Rg4 {[%emt 0:00:49]} Rxf1 {[%emt 0:01:41]} 30. Qxf1 {[%emt 0:00:08]} f5 {[%emt 0:00:50]} 31. Rf4 {[%emt 0:00:14]} (31. Qf4 Qxf4+ 32. Rxf4) 31... d4 {[%emt 0:00:36] ( -> ...dxc3+)} 32. Bxf7 {[%emt 0:01:59]} dxc3+ {[%emt 0:00:07]} 33. Kxc3 {[%emt 0:00:05]} Qb4# {[%emt 0:00:05] Weighted Error Value: White=0.70/Black=0.09 (flawless) .  Mistake:       	White=5     	---        Inaccurate:     	White=3     	Black=1      OK:         	White=3     	Black=12     Best:        	White=1     	Black=3      Strong:       	---       	Black=2} 0-1

[Event "Budapest Chess Festival 2024"]
[Site "Budapest"]
[Date "2024.05.23"]
[Round "1.2"]
[White "Onyshchuk, Volodymyr"]
[Black "Levitan, Caleb Levi"]
[Result "1-0"]
[ECO "C50"]
[WhiteElo "2619"]
[BlackElo "2281"]
[Annotator "TA"]
[PlyCount "51"]
[EventDate "2024.05.20"]
[EventType "swiss"]
[EventCountry "HUN"]
[SourceTitle "playchess.com"]
[Source "ChessBase"]
[SourceQuality "1"]
[TimeControl "40/5400+30:1800+30"]

{[%evp 9,51,41,93,102,112,101,103,87,107,81,87,41,50,43,66,62,68,66,58,48,87,100,114,39,32,39,105,102,296,285,441,449,431,429,389,155,29979,29958,29994,29995,29995,29996,29996,29997]} 1. e4 {[%emt 0:00:37]} e5 {[%emt 0:00:37]} 2. Nf3 {[%emt 0:00:16][%cal Bg1f3,Bf3d4,Bd4b5][%mdl 32]} Nc6 {[%emt 0:00:08]} 3. Bc4 {[%emt 0:00:20]} h6 {[%emt 0:01:32]} 4. d4 {[%emt 0:05:32]} exd4 {[%emt 0:01:02]} 5. Nxd4 {[%emt 0:00:39]} Qf6 {[%emt 0:00:54]} ({Black should try} 5... Ne5 $14) 6. Nb5 $16 {[%emt 0:03:41]} Bc5 {[%emt 0:11:33][%csl Gc5][%cal Rf6f2]} 7. O-O {[%emt 0:03:22]} (7. Nxc7+ Kd8 8. Be3 Bxe3 $17 (8... Kxc7 $2 9. Bxc5 Qe5 10. Ba3 $18)) 7... Bb6 {[%emt 0:00:28]} 8. N1c3 {[%emt 0:02:39] White is better.} Nge7 {[%emt 0:01:26]} 9. Be3 {[%emt 0:05:21] And now Bxb6 would win.} Ne5 {[%emt 0:02:33]} 10. Bb3 {[%emt 0:04:18] White is much more active.} (10. Na4 $16 {aiming for Nxb6.} Ba5 (10... Nxc4 11. Nxb6 Nxb6 12. Nxc7+ Kf8 13. a4 $11) 11. Be2) 10... O-O $14 {[%emt 0:03:03]} 11. Kh1 {[%emt 0:07:57] Bxb6 would now be deadly.} a6 {[%emt 0:04:09]} 12. Bxb6 {[%emt 0:04:29]} Qxb6 {[%emt 0:00:12]} 13. f4 $36 {[%emt 0:07:06][%cal Bf2f4,Bf4f5][%mdl 2080] White has the initiative.} N5c6 {[%emt 0:05:05][%cal Be5c6,Bc6a5,Ba5b3][%mdl 32]} 14. Na3 {[%emt 0:00:23]} Na5 {[%emt 0:02:27]} 15. f5 {[%emt 0:03:39][%cal Of5f6]} Nxb3 {[%emt 0:05:34]} 16. axb3 {[%emt 0:02:48]} (16. cxb3 $16 {[%cal Of5f6] Hoping for f6!} f6 17. Rc1) 16... f6 $1 {[%emt 0:06:17]} 17. Nc4 {[%emt 0:10:56]} Qc5 {[%emt 0:01:35] [#]} (17... Qc6 $1 $14) 18. e5 $1 $16 {[%emt 0:04:09][%mdl 512]} fxe5 {[%emt 0:07:11] [#]} (18... d6 $16) (18... d5 19. exd6) 19. f6 $1 $18 {[%emt 0:01:46]} Rxf6 {[%emt 0:07:43]} (19... gxf6 20. Ne4 Qc6 21. Qg4+ Kh8 22. Nxe5) (19... d5 {was called for.}) 20. Rxf6 {[%emt 0:01:13]} gxf6 {[%emt 0:01:18]} 21. Ne4 {[%emt 0:04:55]} Qc6 {[%emt 0:01:11]} 22. Qg4+ {[%emt 0:09:51]} (22. Ncd6 $18 {and the rest is easy.} cxd6 23. Nxf6+ Kg7 (23... Kf7 $2 24. Qh5+ Ke6 25. Qg4+ Nf5 26. Ng8 $18) 24. Qg4+ Kf7 (24... Kxf6 25. Rf1+) 25. Rf1 Ng6 26. Nd5+ (26. Nxd7+ $2 Nf4 $19) 26... Kg7 27. c4) 22... Kh7 $2 {[%emt 0:00:50] [#] A mistake that costs the game.} (22... Kf8 $16 23. Nxe5 Qe6 (23... fxe5 24. Rf1+ Ke8 25. Qg7 d5 26. Rf7 Qe6 27. Nf6+)) 23. Ncd6 $1 {[%emt 0:02:25][%mdl 512] White mates.} cxd6 {[%emt 0:04:34]} (23... Qxe4 24. Qxe4+) 24. Nxf6+ {[%emt 0:00:12]} Kh8 {[%emt 0:00:01]} 25. Nh5 {[%emt 0:00:48][%csl Gh5][%cal Rg4g7]} Nf5 {[%emt 0:02:32]} 26. Qxf5 {[%emt 0:00:09] Weighted Error Value: White=0.18 (very precise) /Black=0.59.  Loses game:     	---       	Black=2      Missed win:     	White=1     	---        Mistake:       	White=2     	Black=2      Inaccurate:     	---       	Black=1      OK:         	White=7     	Black=4      Best:        	White=1     	Black=3      Strong:       	White=1     	Black=1      Brilliant:      	White=2     	---} 1-0

[Event "Budapest Chess Festival 2024"]
[Site "Budapest"]
[Date "2024.05.23"]
[Round "1.3"]
[White "Turzo, Attila"]
[Black "Berkes, Ferenc"]
[Result "0-1"]
[ECO "A45"]
[WhiteElo "2279"]
[BlackElo "2618"]
[Annotator "TA"]
[PlyCount "92"]
[EventDate "2024.05.20"]
[EventType "swiss"]
[EventCountry "HUN"]
[SourceTitle "playchess.com"]
[Source "ChessBase"]
[SourceQuality "1"]
[TimeControl "40/5400+30:1800+30"]

{[%evp 16,92,0,0,10,0,0,0,12,14,25,0,0,-2,0,0,0,5,0,-13,-4,-4,-7,-11,-6,-9,-12,-14,-7,-2,-14,-20,-10,-39,-36,-43,-39,-39,-39,-39,-39,-38,-41,-53,-48,-58,-56,-52,-42,-42,-42,-53,-42,-42,-42,-42,-42,-42,-42,-42,-42,-42,-42,-66,-42,-42,-42,-62,-42,-42,-42,-52,-42,-45,-49,-57,0,-57,-43]} 1. d4 Nf6 2. Bf4 b6 3. c3 Bb7 4. Nd2 d6 5. Ngf3 Nbd7 6. h3 g6 7. e3 Bg7 8. Bc4 O-O 9. O-O c5 10. Bh2 d5 11. Be2 e6 {The position is equal.} 12. a4 Qe7 13. Ne5 a6 14. Qb3 Nxe5 15. Bxe5 Nd7 16. Bxg7 Kxg7 17. Nf3 Bc6 18. Qa3 a5 19. Qb3 Rab8 20. Rfe1 Rfd8 21. Bb5 Qd6 22. Bxc6 Qxc6 23. Qa3 Rb7 (23... c4 {seems wilder.} 24. Qe7 h6 25. Ne5 Nxe5 26. dxe5 Rd7) 24. b4 axb4 25. cxb4 c4 26. b5 Qc7 27. Qb4 Ra8 28. Ra3 Qd8 29. Nd2 {[%cal Bf3d2,Bd2b1,Bb1c3][%mdl 32]} Nf6 30. Nb1 h5 31. Nc3 h4 32. Rea1 Rba7 33. R3a2 Qc7 34. Qb2 Qd6 35. Qe2 Ra5 36. Rd1 Qb4 37. Qc2 Rc8 38. Rb1 {Prevents Qb3.} Qd6 39. Qb2 Qc7 {Black is more active.} 40. Re1 Rca8 41. Qb4 R5a7 42. Rea1 Qd8 43. Ra3 Kg8 44. R3a2 Kh7 45. Re1 Kg8 46. Rea1 $1 Ne8 {Weighted Error Value: White=0.05 (flawless) /Black=0.05 (flawless) .  Inaccurate:     	White=2     	---        OK:         	White=13    	Black=13     Best:        	---       	Black=1      Strong:       	White=1     	---} 0-1

[Event "Budapest Chess Festival 2024"]
[Site "Budapest"]
[Date "2024.05.23"]
[Round "1.4"]
[White "Kozak, Adam"]
[Black "Yeganegi, Barad"]
[Result "1-0"]
[ECO "C50"]
[WhiteElo "2607"]
[BlackElo "2279"]
[Annotator "TA"]
[PlyCount "63"]
[EventDate "2024.05.20"]
[EventType "swiss"]
[EventCountry "HUN"]
[SourceTitle "playchess.com"]
[Source "ChessBase"]
[SourceQuality "1"]
[TimeControl "40/5400+30:1800+30"]

{[%evp 9,63,10,15,0,8,0,29,15,30,34,89,79,96,61,60,65,106,101,109,132,111,118,125,93,106,91,140,105,160,111,118,129,207,190,308,313,311,302,315,318,362,342,1039,1033,1029,1042,1046,1015,997,987,2077,2144,2300,1667,1763,1775]} 1. e4 {[%emt 0:00:37]} e5 {[%emt 0:00:39]} 2. Nf3 {[%emt 0:00:07]} Nc6 {[%emt 0:00:07]} 3. Bc4 {[%emt 0:01:08]} Nf6 {[%emt 0:00:14]} 4. d3 {[%emt 0:00:08]} Bc5 {[%emt 0:00:07]} 5. a4 {[%emt 0:00:12]} a5 {[%emt 0:11:18]} 6. Nc3 {[%emt 0:00:49]} O-O {[%emt 0:02:13]} 7. h3 {[%emt 0:03:13]} Bb4 {[%emt 0:09:12]} 8. O-O {[%emt 0:02:23] White has an edge.} Bxc3 {[%emt 0:02:04]} 9. bxc3 {[%emt 0:00:15]} d5 {[%emt 0:00:10]} (9... d6 $14) 10. exd5 $16 {[%emt 0:00:33]} Nxd5 {[%emt 0:00:05]} 11. Bd2 {[%emt 0:00:39]} f6 {[%emt 0:09:11][%cal Bf7f6,Bf6f5][%mdl 32]} 12. Re1 {[%emt 0:07:56]} Re8 {[%emt 0:10:19]} 13. d4 {[%emt 0:17:50] aiming for dxe5.} e4 {[%emt 0:05:15]} 14. Nh4 {[%emt 0:03:27]} g6 {[%emt 0:02:05] Prevents Qh5} 15. Rb1 {[%emt 0:06:15]} Kg7 {[%emt 0:05:13]} 16. Bb3 {[%emt 0:09:24]} f5 {[%emt 0:27:48]} 17. Nf3 {[%emt 0:01:14][%cal Bh4f3,Bf3g5,Bg5h3,Bh3f4][%mdl 32]} Nf6 {[%emt 0:08:32]} (17... Be6 $142) 18. Ng5 {[%emt 0:06:33]} Re7 {[%emt 0:00:57] Inhibits Nf7.} (18... Qe7 $142) 19. h4 {[%emt 0:00:08]} ({White should play} 19. Qc1) 19... h6 {[%emt 0:02:30]} 20. Nh3 {[%emt 0:00:11]} Ng4 {[%emt 0:00:08]} (20... Kh7 $16 21. Bc1 Re8) 21. f3 $18 {[%emt 0:14:14]} e3 {[%emt 0:00:35]} (21... Nf6 $142 22. Qc1 Qh8 23. fxe4 Rxe4) 22. fxg4 {[%emt 0:00:23]} exd2 {[%emt 0:00:53]} 23. Qxd2 {[%emt 0:00:24]} fxg4 {[%emt 0:00:07]} 24. Nf4 {[%emt 0:00:36]} Rxe1+ {[%emt 0:00:24]} 25. Qxe1 {[%emt 0:00:48]} Qd6 {[%emt 0:01:26] [#] Prevents d5} (25... Qe7 26. Qf2 Bf5) 26. Qe8 $1 {[%emt 0:02:56] White is clearly winning.} Qf8 {[%emt 0:00:45]} 27. Qxg6+ {[%emt 0:00:56]} Kh8 {[%emt 0:00:03]} 28. Rf1 {[%emt 0:01:52][%cal Bb1f1,Bf1f5,Bf5f7][%mdl 32] White threatens Nh5 and mate.} Bf5 {[%emt 0:00:06]} 29. Qh5 {[%emt 0:00:04] Threatening mate with Ne6.} Ne7 {[%emt 0:00:15] [#]} 30. Ng6+ $1 {[%emt 0:00:58][%mdl 512]} Nxg6 {[%emt 0:00:19]} 31. Rxf5 {[%emt 0:00:06]} Qg7 {[%emt 0:00:07]} 32. Rf7 {[%emt 0:00:09] Weighted Error Value: White=0.12 (very precise) /Black=0.33.  Mistake:       	White=1     	Black=6      Inaccurate:     	White=1     	Black=2      OK:         	White=8     	Black=7      Best:        	White=2     	---        Strong:       	White=1     	---} 1-0

[Event "Budapest Chess Festival 2024"]
[Site "Budapest"]
[Date "2024.05.23"]
[Round "1.5"]
[White "Todorovic, Goran M"]
[Black "Antal, Gergely"]
[Result "1/2-1/2"]
[ECO "B32"]
[WhiteElo "2278"]
[BlackElo "2586"]
[Annotator "TA"]
[PlyCount "120"]
[EventDate "2024.05.20"]
[EventType "swiss"]
[EventCountry "HUN"]
[SourceTitle "playchess.com"]
[Source "ChessBase"]
[SourceQuality "1"]
[TimeControl "40/5400+30:1800+30"]

{[%evp 14,120,29,37,22,31,28,21,31,22,32,7,58,52,52,35,35,34,35,16,29,11,39,16,12,6,18,6,10,12,8,29,134,100,100,94,119,79,66,41,110,0,0,0,0,0,0,0,0,0,0,0,0,0,0,0,86,94,87,87,96,57,57,59,57,60,60,60,108,108,108,108,108,108,108,108,108,96,102,102,108,108,108,108,108,108,108,108,108,96,108,108,108,108,108,108,108,108,108,108,108,108,108,0,0,0,108,0,7]} 1. e4 {[%emt 0:00:33]} c5 {[%emt 0:01:42]} 2. Nf3 {[%emt 0:00:15][%cal Bg1f3,Bf3d4,Bd4b5,Bb5a3,Ba3c4][%mdl 32]} Nc6 {[%emt 0:00:06]} 3. d4 {[%emt 0:00:36]} cxd4 {[%emt 0:00:05]} 4. Nxd4 {[%emt 0:00:05]} e5 {[%emt 0:00:29]} 5. Nb5 {[%emt 0:00:36]} d6 {[%emt 0:00:06]} 6. N1c3 {[%emt 0:00:12]} a6 {[%emt 0:00:20]} 7. Na3 {[%emt 0:00:07]} Be7 {[%emt 0:02:34]} 8. Nc4 {[%emt 0:00:45]} b5 {[%emt 0:01:31]} 9. Ne3 {[%emt 0:00:34]} Nf6 {[%emt 0:00:07]} 10. Bd3 {[%emt 0:00:19]} Nb4 {[%emt 0:00:33]} 11. O-O {[%emt 0:05:08]} O-O {[%emt 0:04:57]} 12. a4 {[%emt 0:13:02]} bxa4 {[%emt 0:17:10]} (12... Be6 $11) 13. Rxa4 {[%emt 0:01:40]} a5 {[%emt 0:00:37]} 14. Re1 {[%emt 0:09:36]} Be6 {[%emt 0:13:46]} 15. b3 {[%emt 0:10:38]} Nd7 {[%emt 0:08:16]} 16. Bf1 {[%emt 0:05:31]} Bg5 {[%emt 0:04:17]} 17. Ra1 {[%emt 0:06:46]} Rc8 {[%emt 0:06:43]} 18. Bb2 {[%emt 0:03:38]} Nb6 {[%emt 0:02:26]} 19. g3 {[%emt 0:11:17]} (19. Rxa5 Bxe3 20. Rxe3 Nc4 21. bxc4 (21. Bxc4 Qxa5 22. Bxe6 fxe6 $15) 21... Qxa5 $17) 19... Rc5 {[%emt 0:00:32]} 20. h4 {[%emt 0:00:50]} Bh6 {[%emt 0:00:39]} 21. Nf5 {[%emt 0:05:02]} Bxf5 {[%emt 0:10:58]} 22. exf5 {[%emt 0:00:07]} Qb8 {[%emt 0:07:51]} (22... Qc7 $1 $11 23. Nb5 Rxb5 24. Bxb5 Nxc2) 23. Ne4 {[%emt 0:08:31][%csl LRc5,LRd6]} Rxc2 {[%emt 0:02:28]} 24. Ba3 {[%emt 0:00:06][%cal Oa3b4] Bxb4! would now be deadly. This pair of bishops is nice.} N6d5 {[%emt 0:06:21]} 25. Bxb4 {[%emt 0:04:18]} Nxb4 {[%emt 0:00:05]} 26. Qxd6 {[%emt 0:00:05]} (26. Nxd6 $2 Rd2 27. Nxf7 Rxd1 $19 (27... Kxf7 $2 28. Qf3 $19)) 26... Nc6 {[%emt 0:03:51]} (26... Qxd6 $14 27. Nxd6 Nc6) 27. Bc4 {[%emt 0:02:25] White is much more active.} (27. Qxb8 $16 Rxb8 28. Red1) 27... Qxd6 $1 $11 {[%emt 0:01:00]} 28. Nxd6 {[%emt 0:00:06]} Bd2 $1 {[%emt 0:00:29]} 29. Red1 {[%emt 0:02:28]} Bb4 {[%emt 0:01:11]} 30. Ne4 {[%emt 0:00:39]} Nd4 {[%emt 0:00:22]} 31. f6 {[%emt 0:02:03]} gxf6 {[%emt 0:02:08]} 32. Nxf6+ {[%emt 0:00:31]} Kg7 {[%emt 0:00:01]} 33. Nh5+ {[%emt 0:01:51]} Kh6 {[%emt 0:01:16]} 34. Nf6 {[%emt 0:00:04]} Rd8 {[%emt 0:00:34] [#]} (34... Kg7 $11 {keeps the balance.} 35. Ng4 Rc3) 35. Ng4+ $1 $16 {[%emt 0:00:15]} Kg7 {[%emt 0:00:05]} 36. Nxe5 {[%emt 0:00:07][%cal Og1g2]} Bc3 {[%emt 0:01:11]} 37. Rac1 {[%emt 0:00:50] aiming for Rxc2.} Nxb3 {[%emt 0:00:59]} 38. Bxb3 {[%emt 0:00:42]} ({But not} 38. Nxf7 Rxc1 39. Rxc1 Nxc1 $11) 38... Rxc1 {[%emt 0:00:06]} 39. Rxc1 {[%emt 0:00:07]} Bxe5 $14 {[%emt 0:00:04][%mdl 4096] Endgame. KRB-KRB} 40. Rc5 {[%emt 0:00:00][%csl LRa5,LRe5]} Rd3 {[%emt 0:00:00]} (40... Bd4 $14 {was preferrable.} 41. Rc7 (41. Rxa5 Rd6 $14) 41... Rf8) 41. Rxe5 $16 {[%emt 0:00:59]} (41. Rxa5 Bd4 42. Rg5+ Kf8) 41... Rxb3 {[%emt 0:01:26]} 42. Rxa5 {[%emt 0:00:08] KR-KR} Kg6 {[%emt 0:00:26]} 43. Rg5+ {[%emt 0:00:11]} Kf6 {[%emt 0:00:03]} 44. Kg2 {[%emt 0:00:04]} h6 {[%emt 0:00:30]} 45. Rg8 {[%emt 0:00:08]} Rb4 {[%emt 0:00:48]} 46. Kh3 {[%emt 0:00:42]} Rb2 {[%emt 0:00:21]} 47. f3 {[%emt 0:03:13]} Kf5 {[%emt 0:03:37]} 48. Rg4 {[%emt 0:02:04]} Rb3 {[%emt 0:01:21] [#]} 49. Rf4+ $1 {[%emt 0:00:07]} Kg6 {[%emt 0:00:02]} 50. g4 {[%emt 0:00:25]} Rb5 {[%emt 0:01:00]} 51. Kg3 {[%emt 0:00:10]} Rb1 {[%emt 0:01:46]} 52. Rd4 {[%emt 0:00:10]} Rb6 {[%emt 0:00:28]} 53. Rd5 {[%emt 0:00:18]} Kg7 {[%emt 0:00:32]} 54. Kf4 {[%emt 0:00:10]} Rb1 {[%emt 0:00:30]} 55. Kf5 {[%emt 0:01:49]} Rh1 {[%emt 0:00:25]} 56. h5 {[%emt 0:00:11]} Rh3 {[%emt 0:03:39]} 57. f4 {[%emt 0:00:20]} Rh2 {[%emt 0:01:00]} 58. Ke5 {[%emt 0:01:21]} (58. Ke4 $16) 58... Rg2 $11 {[%emt 0:01:20]} 59. Kf5 {[%emt 0:00:06]} (59. g5 $11) 59... Rh2 $1 $16 {[%emt 0:00:04]} 60. Ke5 {[%emt 0:00:29]} (60. Rb5 $16) 60... Re2+ {[%emt 0:00:05] Weighted Error Value: White=0.14 (very precise) /Black=0.12 (very precise) .  Mistake:       	White=4     	Black=5      Inaccurate:     	White=2     	---        OK:         	White=15    	Black=24     Best:        	White=4     	Black=2      Strong:       	White=2     	Black=3} 1/2-1/2

[Event "Budapest Chess Festival 2024"]
[Site "Budapest"]
[Date "2024.05.23"]
[Round "1.6"]
[White "Prohaszka, Peter"]
[Black "Szalay-Ocsak, Bank"]
[Result "1-0"]
[ECO "A45"]
[WhiteElo "2581"]
[BlackElo "2278"]
[Annotator "TA"]
[PlyCount "71"]
[EventDate "2024.05.20"]
[EventType "swiss"]
[EventCountry "HUN"]
[SourceTitle "playchess.com"]
[Source "ChessBase"]
[SourceQuality "1"]
[TimeControl "40/5400+30:1800+30"]

{[%evp 16,70,17,5,33,15,22,23,16,19,48,52,72,49,48,46,75,67,96,61,35,28,35,30,44,42,48,51,79,61,100,33,54,60,47,58,110,106,110,55,343,322,350,337,707,763,766,733,687,113,6226,5510,29985,29986,29998,29999,29999]} 1. d4 {[%emt 0:00:35]} Nf6 {[%emt 0:01:30]} 2. g3 {[%emt 0:02:39]} d5 {[%emt 0:00:57]} 3. Nf3 {[%emt 0:00:35]} g6 {[%emt 0:08:05]} 4. Bg2 {[%emt 0:03:06]} Bg7 {[%emt 0:00:05]} 5. O-O {[%emt 0:00:14]} O-O {[%emt 0:00:07]} 6. c3 {[%emt 0:01:27]} c6 {[%emt 0:03:17]} 7. a4 {[%emt 0:00:43]} a5 {[%emt 0:03:11]} 8. Nbd2 {[%emt 0:03:12]} Nbd7 {[%emt 0:00:59]} 9. Re1 {[%emt 0:00:16]} Nb6 {[%emt 0:16:12]} 10. Ne5 {[%emt 0:06:55]} Nfd7 {[%emt 0:02:54]} 11. Nxd7 {[%emt 0:04:54]} Nxd7 {[%emt 0:05:55][%cal Bb6d7,Bd7f6,Bf6d5][%mdl 32] White has an edge.} 12. e4 {[%emt 0:01:12]} dxe4 {[%emt 0:02:39]} 13. Nxe4 {[%emt 0:00:39]} Nf6 {[%emt 0:03:42]} 14. Nc5 {[%emt 0:09:38]} Nd5 {[%emt 0:04:31]} 15. h4 {[%emt 0:03:11][%cal Bh2h4,Bh4h5,Bh5h6][%mdl 32]} Qc7 {[%emt 0:05:13]} 16. h5 {[%emt 0:06:29]} Bf5 {[%emt 0:01:45]} 17. h6 {[%emt 0:03:08]} Bf6 {[%emt 0:01:16]} 18. Qb3 {[%emt 0:16:55]} b6 {[%emt 0:01:47]} 19. Ne4 {[%emt 0:00:44]} Bh8 {[%emt 0:04:42]} 20. Bg5 {[%emt 0:02:55]} Rfe8 {[%emt 0:01:41]} 21. Nd2 {[%emt 0:07:43]} Rad8 {[%emt 0:02:36]} 22. Nc4 {[%emt 0:01:09]} Be6 {[%emt 0:06:23]} 23. Qc2 {[%emt 0:08:28] White is more active.} (23. Rxe6 $16 fxe6 24. Re1) 23... Bf5 {[%emt 0:00:52]} 24. Qe2 {[%emt 0:01:12] Black is weak on the dark squares} Be6 {[%emt 0:07:18][%cal Bf5e6,Be6d5,Bd5g2][%mdl 32]} 25. Rad1 {[%emt 0:05:55]} b5 {[%emt 0:04:09] [#]} (25... Qc8 $14) 26. axb5 $1 $16 {[%emt 0:01:27]} cxb5 {[%emt 0:00:07] [#]} 27. Ne3 {[%emt 0:02:18]} (27. Na3 $1 $16) 27... b4 $2 {[%emt 0:08:29][%mdl 8192]} ({Better is} 27... Nxe3 $14 28. Qxe3 Bb3) 28. Nxd5 $18 {[%emt 0:01:59]} Bxd5 {[%emt 0:00:01]} 29. Bxe7 {[%emt 0:02:32]} Qc6 $2 {[%emt 0:02:13]} (29... Rd7) 30. Bxd8 {[%emt 0:02:41]} Rxe2 {[%emt 0:00:11]} 31. Rxe2 {[%emt 0:00:07]} Bxg2 {[%emt 0:00:48]} 32. d5 $2 $40 {[%emt 0:00:56][%mdl 128] White goes for the king.} (32. Rde1 $18 {is the precise move to win. White threatens Re8+ and mate.} Kf8 (32... bxc3 33. Re8+) 33. Bxa5) 32... Qa4 {[%emt 0:02:09][%mdl 8192]} (32... Bxd5 $16 33. Rxd5 Bg7) 33. Rde1 {[%emt 0:00:29] Re8+ would kill now.} f5 {[%emt 0:00:36]} 34. Re8+ {[%emt 0:00:15] White mates.} Kf7 {[%emt 0:00:04]} 35. R1e7+ {[%emt 0:00:18]} Kf6 {[%emt 0:00:05]} 36. Rg7# {[%emt 0:00:28] Weighted Error Value: White=0.30/Black=0.71.  Loses game:     	---       	Black=1      Mistake:       	White=2     	Black=2      Inaccurate:     	White=1     	Black=6      OK:         	White=8     	Black=4      Best:        	White=3     	---        Strong:       	White=1     	---} 1-0